bitfinex/quotes_ETHUSD_20241212
["timestamp","ask_amount","ask_price","bid_price","bid_amount"]
[1733973878447,0.1655488,3896.0,3895.9,1.19446533]
[1733973878658,0.1655488,3896.0,3895.9,5.33316533]
[1733973879359,8.8e-06,3896.0,3895.9,7.33316533]
[1733973880499,5.62813901,3896.7,3895.9,7.33316533]
[1733973880500,5.62813901,3896.7,3896.0,1.83336]
[1733973880780,5.62813901,3896.7,3896.6,4.74048375]
[1733973880999,5.62813901,3896.7,3896.6,4.8453771]
[1733973881283,5.62813901,3896.7,3896.6,4.74048375]
[1733973881574,5.62813901,3896.7,3896.6,7.84521407]
[1733973882476,5.99237351,3896.7,3896.6,7.84513485]
[1733973882638,5.99237351,3896.7,3896.6,8.75797334]
[1733973884330,3.42609351,3896.7,3896.6,8.75797334]
[1733973884533,3.51e-06,3896.9,3896.8,4.8331]
[1733973884791,3.51e-06,3896.9,3896.8,1.3877511]
[1733973885377,3.51e-06,3896.9,3896.8,1.96340941]
[1733973885540,3.51e-06,3896.9,3896.8,5.99942426]
[1733973885938,3.51e-06,3896.9,3896.8,2.44942426]
[1733973886186,3.51e-06,3896.9,3896.8,2.99942426]
[1733973886475,3.51e-06,3896.9,3896.8,2.44931587]
[1733973887561,3.51e-06,3896.9,3896.8,2.44929823]
[1733973887892,3.51e-06,3896.9,3896.8,1.16619823]
[1733973888041,1.16090351,3896.9,3896.8,0.10452507]
[1733973888243,1.16090351,3896.9,3896.1,3.45732375]
[1733973888574,1.16090351,3896.9,3896.2,0.10459301]
[1733973888761,1.16090351,3896.9,3896.1,3.45732375]
[1733973888954,1.53359686,3896.9,3896.1,3.45732375]
[1733973889158,1.1609,3896.6,3895.6,3.45732375]
[1733973889392,1.1609,3896.6,3895.7,0.10464508]
[1733973889680,2.56648,3896.4,3895.6,3.45732375]
[1733973890086,1.1609,3896.6,3895.7,0.10465745]
[1733973890258,1.1609,3896.6,3895.8,0.10465745]
[1733973890457,1.1609,3896.6,3895.9,0.10465745]
[1733973890658,1.1609,3896.6,3895.8,0.48455012]
[1733973890862,1.1609,3896.6,3896.0,3.45732375]
[1733973891104,1.1609,3896.6,3896.4,3.45732375]
[1733973891462,1.1609,3896.6,3896.5,0.10463704]
[1733973891799,1.1609,3896.6,3896.4,3.45732375]
[1733973892078,3.51e-06,3896.9,3896.5,1.36630735]
[1733973892289,3.51e-06,3896.9,3896.6,2.64945735]
[1733973892492,3.51e-06,3896.9,3896.7,1.36630735]
[1733973892644,3.51e-06,3896.9,3896.8,0.10461742]
[1733973892846,3.51e-06,3896.9,3896.6,1.28315]
[1733973893046,3.51e-06,3896.9,3896.7,2.0055937]
[1733973893284,3.51e-06,3896.9,3896.8,0.10460956]
[1733973893975,3.51e-06,3896.9,3896.8,2.43809633]
[1733973894294,3.51e-06,3896.9,3896.8,0.10458978]
[1733973894457,3.51e-06,3896.9,3896.8,8.76484508]
[1733973894794,3.51e-06,3896.9,3896.8,10.29160784]
[1733973895487,3.51e-06,3896.9,3896.8,8.15109045]
[1733973895983,3.51e-06,3896.9,3896.8,10.29099896]
[1733973896397,3.51e-06,3896.9,3896.8,8.15048157]
[1733973896746,3.51e-06,3896.9,3896.8,10.15048157]
[1733973896951,3.51e-06,3896.9,3896.8,13.60780532]
[1733973897165,3.51e-06,3896.9,3896.8,13.50321554]
[1733973897382,3.51e-06,3896.9,3896.8,11.60775372]
[1733973897686,3.51e-06,3896.9,3896.8,13.74912204]
[1733973897886,3.51e-06,3896.9,3896.8,9.37559772]
[1733973898475,3.51e-06,3896.9,3896.8,12.66261954]
[1733973899577,3.51e-06,3896.9,3896.8,10.44617409]
[1733973899781,3.51e-06,3896.9,3896.8,4.82317581]
[1733973899995,1.20080351,3896.9,3896.4,1.07057637]
[1733973900167,1.20080351,3896.9,3896.5,0.10460723]
[1733973900499,1.20080351,3896.9,3896.4,1.26077587]
[1733973900500,1.20080351,3896.9,3896.3,3.45732375]
[1733973901015,3.76696351,3896.9,3895.8,3.45732375]
[1733973901292,1.20080351,3896.9,3896.2,3.45732375]
[1733973901665,3.51e-06,3896.9,3896.7,3.45732375]
[1733973902970,3.51e-06,3896.9,3896.8,1.36534272]
[1733973903166,3.51e-06,3896.9,3896.8,1.36526775]
[1733973903368,3.51e-06,3896.9,3896.8,2.43584412]
[1733973903615,3.51e-06,3896.9,3896.8,3.50255608]
[1733973903757,3.51e-06,3896.9,3896.8,7.11285772]
[1733973904309,3.51e-06,3896.9,3896.8,9.25422604]
[1733973905013,3.51e-06,3896.9,3896.8,7.11285772]
[1733973905188,3.51e-06,3896.9,3896.8,9.25422604]
[1733973905384,3.51e-06,3896.9,3896.8,7.11285772]
[1733973905589,3.51e-06,3896.9,3896.8,8.71835456]
[1733973905751,3.51e-06,3896.9,3896.8,9.25440255]
[1733973906456,3.51e-06,3896.9,3896.8,8.71850182]
[1733973906710,3.51e-06,3896.9,3896.8,8.71851142]
[1733973906996,3.51e-06,3896.9,3896.8,7.11303423]
[1733973907155,3.51e-06,3896.9,3896.8,7.66303423]
[1733973907356,3.51e-06,3896.9,3896.8,9.80353984]
[1733973907596,3.51e-06,3896.9,3896.8,7.66303423]
[1733973908094,0.005,3897.9,3897.1,1.02639]
[1733973908322,0.005,3897.9,3897.2,5.37245948]
[1733973908472,0.005,3897.9,3897.7,1.02623]
[1733973908667,0.005,3897.9,3897.8,0.1047126]
[1733973908970,0.005,3897.9,3897.8,0.10469643]
[1733973909194,0.005,3897.9,3897.8,0.10469147]
[1733973909500,0.005,3897.9,3897.8,0.32481613]
[1733973909800,0.005,3897.9,3897.8,0.1046827]
[1733973910170,0.005,3897.9,3897.8,1.3647823]
[1733973910372,0.005,3897.9,3897.3,5.55365219]
[1733973910696,0.005,3897.9,3897.4,1.36448523]
[1733973910910,0.005,3897.9,3896.8,1.06998844]
[1733973910911,1.221,3897.8,3896.8,1.06998844]
[1733973911072,0.005,3897.9,3896.8,1.06998844]
[1733973911073,1.221,3897.5,3896.9,0.10472809]
[1733973911280,1.221,3896.7,3896.0,1.06998844]
[1733973911595,1.221,3896.7,3896.0,0.27054049]
[1733973911752,0.23943098,3897.2,3895.4,1.06998844]
[1733973911960,0.90559866,3897.6,3895.8,3.45732375]
[1733973912274,0.00313786,3898.1,3897.9,1.02617]
[1733973912455,0.00313786,3898.1,3898.0,10.74395668]
[1733973912657,0.00313786,3898.1,3898.0,8.88345008]
[1733973912864,0.129304,3900.0,3898.2,1.02609]
[1733973913085,0.129304,3900.0,3899.2,1.06961821]
[1733973913297,0.129304,3900.0,3899.1,1.60442732]
[1733973913298,0.129304,3900.0,3899.1,1.06961821]
[1733973913472,0.129304,3900.0,3899.2,0.10457379]
[1733973913721,0.129304,3900.0,3899.3,1.15585676]
[1733973914034,0.57126881,3899.9,3899.4,0.10457379]
[1733973914352,0.57126881,3899.9,3898.7,1.60442732]
[1733973914353,2.56434,3899.7,3899.5,0.10443527]
[1733973914643,2.56434,3899.7,3898.7,1.06961821]
[1733973914644,0.1631989,3899.9,3898.6,1.27852624]
[1733973914849,2.56478,3899.0,3898.7,1.15533885]
[1733973915144,2.821318,3898.9,3898.8,0.27151815]
[1733973915296,3.78584,3898.9,3898.8,9.24e-06]
[1733973915498,3.78584,3898.9,3897.6,1.06961821]
[1733973915499,2.56548,3897.9,3897.6,0.20894516]
[1733973915696,2.56548,3897.9,3897.4,0.17419187]
[1733973915697,1.221,3897.8,3897.7,0.16723046]
[1733973915948,1.477548,3897.8,3897.7,0.16723046]
[1733973916148,2.56598,3897.2,3896.8,0.20894516]
[1733973916294,1.477548,3897.8,3896.9,0.16728878]
[1733973916493,2.56598,3897.2,3896.3,1.27874796]
[1733973916739,2.56612,3897.0,3896.4,1.0517457]
[1733973917053,1.477548,3897.8,3896.5,1.05176713]
[1733973917224,3.78655,3897.8,3896.7,1.06961821]
[1733973917540,1.221,3897.8,3897.1,1.06961821]
[1733973917690,1.221,3897.8,3897.2,2.37829773]
[1733973917891,1.221,3897.8,3897.3,0.376152]
[1733973918091,1.221,3897.8,3897.4,0.16717033]
[1733973918295,1.221,3897.8,3897.5,0.16717033]
[1733973918595,0.00313623,3900.2,3899.8,0.25]
[1733973918795,0.00313623,3900.2,3899.8,6.72896544]
[1733973918994,0.00313623,3900.2,3899.8,9.99086883]
[1733973919259,0.00313623,3900.2,3900.1,1.27561]
[1733973919556,0.00313623,3900.2,3900.1,6.33445717]
[1733973919743,0.00313623,3900.2,3900.1,10.84488828]
[1733973919892,0.00313623,3900.2,3900.1,10.19421448]
[1733973920099,0.00313623,3900.2,3900.1,10.1903404]
[1733973920339,0.0031253,3901.1,3901.0,0.25]
[1733973920642,0.0031253,3901.1,3901.0,3.87408354]
[1733973920810,0.0031253,3901.1,3901.0,4.08225995]
[1733973921137,0.0031253,3901.1,3901.0,4.96450837]
[1733973921292,0.0031253,3901.1,3901.0,4.35230302]
[1733973922141,0.0031253,3901.1,3901.0,7.10623215]
[1733973922445,0.0031253,3901.1,3901.0,5.78295178]
[1733973922611,0.0031253,3901.1,3901.0,6.88416522]
[1733973922795,0.0031253,3901.1,3901.0,7.71226003]
[1733973922994,5.625,3901.2,3901.1,0.95116936]
[1733973923238,5.625,3901.2,3901.1,2.91835803]
[1733973923437,5.625,3901.2,3901.1,6.12308768]
[1733973923593,0.07968495,3901.4,3901.3,5.8]
[1733973923792,0.00313484,3901.9,3901.8,0.8]
[1733973924031,0.00313484,3901.9,3901.8,5.32909503]
[1733973924211,0.00313484,3901.9,3901.8,5.80750811]
[1733973924415,0.00313484,3901.9,3901.8,5.10890981]
[1733973924623,0.00313484,3901.9,3901.8,4.55890981]
[1733973924805,0.00313484,3901.9,3901.4,0.17330717]
[1733973924806,2.56291,3901.8,3901.3,4.18554323]
[1733973925029,0.37653448,3901.7,3901.3,4.18554323]
[1733973925229,2.56307,3901.6,3901.3,4.18554323]
[1733973925471,2.56307,3901.6,3901.3,0.25]
[1733973925626,0.02890983,3901.5,3901.3,0.25]
[1733973926428,0.37653448,3901.7,3901.1,0.25]
[1733973926627,2.56601484,3901.9,3901.3,0.25]
[1733973926969,2.56601484,3901.9,3900.9,0.25]
[1733973926970,2.56329,3901.3,3900.9,0.25]
[1733973927261,2.56314,3901.5,3900.3,0.25]
[1733973927469,2.56367,3900.7,3900.5,0.25]
[1733973927778,0.02862405,3900.6,3900.5,0.25]
[1733973928122,2.5634,3901.1,3900.8,0.25]
[1733973928323,0.25634,3901.0,3900.8,0.25]
[1733973928660,0.00313484,3901.9,3901.2,0.25]
[1733973928661,2.56305,3901.7,3901.2,0.25]
[1733973928961,2.5632,3901.4,3901.2,0.25]
[1733973929262,2.56331,3901.2,3900.9,0.25]
[1733973929465,2.56323,3901.4,3900.9,0.25]
[1733973929873,0.00313484,3901.9,3901.3,0.25]
[1733973930169,2.56298,3901.7,3901.3,0.25]
[1733973930333,2.56298,3901.7,3901.5,0.25]
[1733973930334,0.37654148,3901.7,3901.5,0.25]
[1733973930537,0.00313484,3901.9,3901.5,0.25]
[1733973930538,2.56601484,3901.9,3901.5,0.25]
[1733973930735,4.774e-05,3901.9,3901.8,0.25]
[1733973932928,2.56268,3902.2,3901.8,0.25]
[1733973933130,0.256268,3902.1,3901.8,0.25]
[1733973933534,3.76176,3902.5,3901.8,0.25]
[1733973933773,0.00313402,3902.9,3902.5,0.25]
[1733973934235,0.00313402,3902.9,3902.7,0.25]
[1733973934435,0.00313402,3902.9,3902.5,0.25]
[1733973934778,2.56234,3902.7,3902.5,0.25]
[1733973935070,0.00313402,3902.9,3902.7,0.25]
[1733973935928,2.56533402,3902.9,3902.7,0.25]
[1733973936133,2.56533402,3902.9,3901.6,3.93554323]
[1733973936134,2.94180742,3902.9,3902.6,0.25]
[1733973936353,0.00313402,3902.9,3902.8,0.25]
[1733973938742,0.03215228,3902.9,3902.8,0.25]
[1733973938958,0.00313402,3902.9,3902.8,0.25]
[1733973939482,0.1631989,3903.8,3903.7,0.25]
[1733973939688,0.1631989,3903.8,3902.6,3.93554323]
[1733973939689,0.1631989,3903.8,3903.4,0.25]
[1733973939854,0.1631989,3903.8,3903.6,0.25]
[1733973940271,0.1631989,3903.8,3903.7,8.64700323]
[1733973940475,0.0031328,3904.4,3904.1,2.0]
[1733973940810,0.0031328,3904.4,3904.3,0.25]
[1733973941249,0.0031328,3904.4,3904.3,0.35289202]
[1733973941697,0.0031328,3904.4,3904.3,1.63419355]
[1733973941864,0.0031328,3904.4,3904.3,6.03214718]
[1733973942200,0.00311413,3905.3,3904.6,2.25]
[1733973942366,0.00311413,3905.3,3904.6,3.06753862]
[1733973942553,0.00311413,3905.3,3904.6,6.06753862]
[1733973942754,0.00311413,3905.3,3904.6,3.72063663]
[1733973942982,0.00311413,3905.3,3904.3,1.93900153]
[1733973942983,0.00311413,3905.3,3905.2,0.25]
[1733973943379,0.00311413,3905.3,3904.3,0.25]
[1733973943380,2.56121,3904.4,3904.3,0.25]
[1733973943594,1.1424,3905.2,3904.3,0.25]
[1733973943595,3.70315,3905.2,3904.3,0.25]
[1733973943895,1.1424,3905.2,3904.9,0.25]
[1733973944656,3.7031,3905.2,3904.9,0.25]
[1733973944858,2.56076,3905.1,3904.9,0.25]
[1733973945167,1.1424,3905.2,3904.7,0.25]
[1733973945369,1.1424,3905.2,3904.4,0.25]
[1733973945606,2.56154,3903.9,3903.6,0.25]
[1733973945763,2.56083,3905.0,3903.6,0.25]
[1733973945764,1.1424,3903.8,3903.6,0.25]
[1733973945957,3.70406,3903.8,3903.6,0.25]
[1733973946373,2.56127,3904.4,3903.6,0.25]
[1733973946578,1.1424,3904.4,3903.8,0.25]
[1733973946964,1.1424,3904.4,3904.3,0.25]
[1733973947199,0.15218482,3905.2,3904.3,0.25]
[1733973947200,2.56115,3904.5,3904.3,0.25]
[1733973947404,2.56115,3904.5,3902.8,3.02561278]
[1733973947405,0.256115,3904.5,3903.9,0.25]
[1733973947609,0.15218482,3905.2,3904.9,0.25]
[1733973947610,2.71291482,3905.2,3904.9,0.25]
[1733973947791,2.56097,3904.8,3904.6,0.25]
[1733973947961,0.15218482,3905.2,3904.3,0.25]
[1733973947962,2.56123,3904.4,3904.3,0.25]
[1733973948162,2.56109,3904.6,3904.3,0.25]
[1733973948360,2.71289482,3905.2,3904.5,0.25]
[1733973948663,2.71289482,3905.2,3903.3,2.0]
[1733973948664,0.4234743,3905.1,3904.6,0.25]
[1733973949063,0.00311413,3905.3,3905.2,0.25]
[1733973949511,0.00311413,3905.3,3905.2,0.35312049]
[1733973950021,0.00311413,3905.3,3905.2,0.35313051]
[1733973950379,0.00311413,3905.3,3905.2,0.25]
[1733973950581,0.04043589,3905.3,3905.2,0.35309937]
[1733973950785,0.04043589,3905.3,3905.2,0.35309006]
[1733973951314,0.19846857,3905.3,3905.2,0.25]
[1733973951677,1.34086857,3905.3,3905.2,0.25]
[1733973951879,0.04043589,3905.3,3905.2,0.25]
[1733973952201,0.04043589,3905.3,3905.2,0.35307397]
[1733973952408,0.04043589,3905.3,3905.2,0.51792195]
[1733973952563,0.02115686,3905.6,3905.2,0.51792195]
[1733973952915,5.825,3905.7,3905.2,0.51792195]
[1733973952916,5.46961968,3905.7,3905.2,0.25]
[1733973953119,5.46961968,3905.7,3905.6,5.8]
[1733973953267,1.0559775,3907.4,3906.1,2.0]
[1733973953463,1.0559775,3907.4,3906.6,0.25]
[1733973953664,2.55954,3907.0,3906.6,0.25]
[1733973953913,2.55958,3906.9,3906.6,0.25]
[1733973954312,2.2325775,3907.4,3906.6,0.25]
[1733973954466,2.5595,3907.1,3906.6,0.25]
[1733973955011,2.2325775,3907.4,3906.6,0.25]
[1733973955317,3.6152375,3907.4,3906.6,0.25]
[1733973955471,1.13182246,3907.9,3907.3,0.25]
[1733973955665,2.5592,3907.5,3907.3,0.25]
[1733973955981,0.25592,3907.4,3907.3,0.25]
[1733973956182,0.00317524,3908.9,3907.3,0.25]
[1733973956369,0.00317524,3908.9,3907.4,0.25]
[1733973956370,2.55902,3907.8,3907.4,0.25]
[1733973956714,2.55906,3907.7,3907.4,0.25]
[1733973957067,2.55839,3908.7,3906.9,0.25]
[1733973957068,2.55941,3907.2,3906.9,0.25]
[1733973957303,0.255941,3907.1,3906.9,0.25]
[1733973957510,2.55922,3907.5,3906.9,0.25]
[1733973958071,2.55901,3907.8,3906.9,0.25]
[1733973958266,2.55901,3907.8,3907.4,0.25]
[1733973958785,2.55897,3907.9,3907.6,0.25]
[1733973959115,1.1766,3908.0,3907.8,0.25]
[1733973959321,1.1766,3908.0,3906.4,1.2168]
[1733973959322,2.55907,3907.7,3907.2,0.25]
[1733973959615,0.373536,3907.9,3907.2,0.25]
[1733973959815,2.55934,3907.3,3907.0,0.25]
[1733973960371,2.55898,3907.8,3906.7,0.25]
[1733973960605,2.55898,3907.8,3906.4,0.25]
[1733973960606,2.55962,3906.9,3906.4,0.25]
[1733973960774,5.1181,3907.7,3906.4,0.25]
[1733973961117,1.1766,3908.0,3906.4,0.25]
[1733973961118,2.55918,3907.5,3906.4,0.25]
[1733973961309,2.55918,3907.5,3905.8,0.3768178]
[1733973961310,2.55921,3907.5,3905.8,0.3768178]
[1733973961498,1.1766,3908.0,3905.9,2.16436948]
[1733973961703,2.55929,3907.4,3906.0,0.16436948]
[1733973961924,2.55943,3907.2,3906.0,0.16436948]
[1733973962075,2.5595,3907.1,3906.1,0.16436948]
[1733973962417,2.5594,3907.2,3905.8,1.02411]
[1733973962647,2.5594,3907.2,3905.4,1.1732]
[1733973962648,2.56012,3906.1,3905.9,0.16450658]
[1733973962924,2.56085,3905.0,3904.4,1.1732]
[1733973963222,2.56092,3904.9,3904.5,0.16468203]
[1733973963523,1.2636,3906.5,3904.4,2.0]
[1733973963679,1.2636,3906.5,3903.7,4.06404443]
[1733973963680,0.2369797,3907.0,3905.0,2.0]
[1733973964020,1.2636,3907.1,3905.1,0.19030148]
[1733973964316,1.2636,3907.1,3904.7,3.93554323]
[1733973964317,2.55978,3906.6,3904.9,2.0]
[1733973964524,2.55978,3906.6,3905.1,1.02428]
[1733973964720,1.2636,3907.1,3904.9,2.0]
[1733973964721,1.2636,3907.1,3905.2,0.02560159]
[1733973964923,3.82305,3907.1,3905.3,5.02559892]
[1733973965224,3.82305,3907.1,3905.3,3.0]
[1733973965225,2.55945,3907.1,3905.3,3.0]
[1733973965521,0.02560394,3907.6,3905.2,0.58315837]
[1733973965726,1.2636,3908.8,3906.6,0.55]
[1733973965928,0.26262379,3908.7,3906.1,3.0]
[1733973966075,2.55881,3908.1,3906.4,1.02394]
[1733973966279,2.55887,3908.0,3906.4,1.02394]
[1733973966624,2.5586,3908.4,3906.8,1.02384]
[1733973966917,2.5586,3908.4,3906.4,0.12726216]
[1733973966918,2.55865,3908.3,3906.4,0.12726216]
[1733973967141,0.49555078,3908.2,3906.4,0.12726216]
[1733973967294,0.23709096,3908.3,3906.1,3.02559302]
[1733973967498,0.23709096,3908.2,3906.9,1.02382]
[1733973967711,0.23709096,3908.2,3906.4,0.12588068]
[1733973967712,2.55873,3908.2,3907.0,0.02559091]
[1733973967944,2.5588,3908.1,3906.5,1.02391]
[1733973968130,0.1529399,3908.6,3906.4,2.12588068]
[1733973968298,2.55868,3908.3,3906.7,1.02385]
[1733973968503,0.02560394,3908.7,3906.5,3.51258807]
[1733973968702,1.1889,3908.4,3906.4,0.12588068]
[1733973968902,1.1889,3908.4,3906.7,1.02387]
[1733973969133,1.1889,3908.4,3906.9,1.02381]
[1733973969134,3.74751,3908.4,3906.9,1.02381]
[1733973969316,0.00317524,3908.9,3906.8,2.02559089]
[1733973969642,2.5585,3908.6,3907.0,1.0238]
[1733973969951,2.55878,3908.2,3906.8,2.02559089]
[1733973970161,0.00317524,3908.9,3907.2,3.61734631]
[1733973970455,1.1889,3908.8,3907.3,0.2065]
[1733973970659,1.1889,3908.8,3907.2,3.61734631]
[1733973970660,1.1889,3908.8,3907.2,2.82384631]
[1733973970819,0.23726162,3908.7,3907.2,2.82384631]
[1733973971010,1.22088833,3908.8,3907.2,2.82384631]
[1733973971011,2.55869,3908.3,3907.2,2.82384631]
[1733973971210,0.00317524,3908.9,3907.3,3.0]
[1733973971410,2.55881,3908.1,3907.2,1.82384631]
[1733973971670,1.19207524,3908.9,3907.2,1.82384631]
[1733973971814,2.55875,3908.2,3907.2,1.82384631]
[1733973972017,2.55875,3908.2,3907.0,0.1294416]
[1733973972233,2.55875,3908.2,3906.8,3.0]
[1733973972234,2.55875,3908.2,3906.8,1.02384]
[1733973972416,0.31920752,3908.8,3906.7,3.61734631]
[1733973972651,2.55899,3907.8,3906.4,0.12588068]
[1733973972954,0.35112828,3908.7,3907.2,3.61734631]
[1733973973160,0.31920752,3908.8,3907.6,3.61734631]
[1733973973326,0.00317524,3908.9,3907.7,0.10293478]
[1733973973665,0.00317524,3908.9,3908.0,1.02353]
[1733973973818,0.00317524,3908.9,3908.1,0.10293478]
[1733973974079,0.00317524,3908.9,3907.7,0.55]
[1733973974303,0.00317524,3908.9,3908.1,3.61734631]
[1733973974520,0.00317524,3908.9,3907.9,2.0]
[1733973974521,0.00317524,3908.9,3908.7,1.02334]
[1733973974675,2.0,3909.0,3908.7,1.02334]
[1733973975018,2.0,3909.0,3908.7,0.55]
[1733973975979,2.0,3909.0,3908.6,3.16734631]
[1733973976405,2.0,3909.0,3908.8,1.02332]
[1733973976713,50.0,3910.0,3909.2,1.02322]
[1733973976920,50.0,3910.0,3909.2,9.64056631]
[1733973977279,50.0,3910.0,3909.2,8.61734631]
[1733973977512,50.0,3910.0,3909.2,9.64056631]
[1733973977891,50.0,3910.0,3909.2,7.64056631]
[1733973978098,50.0,3910.0,3909.6,1.0231]
[1733973978493,50.0,3910.0,3909.4,0.55]
[1733973978697,50.0,3910.0,3909.9,6.61734631]
[1733973979335,50.0,3910.0,3909.8,1.02306]
[1733973980409,50.0,3910.0,3909.9,0.55]
[1733973980729,50.0,3910.0,3909.9,1.007306]
[1733973980920,42.6891042,3910.0,3909.9,11.545085]
[1733973981131,32.24056381,3910.0,3909.9,8.821306]
[1733973981299,0.00312807,3910.3,3910.0,4.02301]
[1733973981482,0.00312807,3910.3,3910.1,7.46838672]
[1733973981683,0.00312807,3910.3,3910.1,8.69056299]
[1733973982034,0.00312717,3911.4,3910.1,8.69056299]
[1733973982035,0.00312717,3911.4,3910.8,2.0]
[1733973982186,0.00312717,3911.4,3911.3,7.46838672]
[1733973982591,0.00312717,3911.4,3911.3,11.55945472]
[1733973982782,0.00312717,3911.4,3911.3,7.46838672]
[1733973983015,0.00312717,3911.4,3911.3,8.51749439]
[1733973983339,0.00312717,3911.4,3910.9,3.91838672]
[1733973983484,0.00312717,3911.4,3910.8,0.1019]
[1733973983485,0.00312717,3911.4,3911.0,4.0]
[1733973984133,0.03054208,3911.3,3911.0,4.0]
[1733973984289,0.03054208,3911.3,3910.8,0.1019]
[1733973984491,0.03054208,3911.3,3910.9,3.91838672]
[1733973984700,0.00312717,3911.4,3911.1,0.76703]
[1733973985026,0.00312717,3911.4,3911.1,0.55]
[1733973985217,0.00312717,3911.4,3911.1,0.76703]
[1733973985420,0.00312717,3911.4,3911.0,3.0]
[1733973985615,0.00312717,3911.4,3910.9,4.04615498]
[1733973985616,0.00312717,3911.4,3910.9,0.12776826]
[1733973985819,0.00312717,3911.4,3910.5,3.0]
[1733973986052,0.1631989,3911.6,3910.8,0.12742343]
[1733973986188,0.25,3911.4,3911.3,0.767]
[1733973986626,0.1631989,3911.6,3911.3,0.767]
[1733973986940,0.1631989,3911.6,3911.2,0.76702]
[1733973987105,0.1631989,3911.6,3911.4,0.76698]
[1733973987831,0.1631989,3911.6,3911.5,3.0]
[1733973988029,1.1807,3912.9,3911.5,4.34523867]
[1733973988230,1.1807,3912.9,3911.9,0.1019]
[1733973988732,2.5552,3913.6,3912.1,0.76684]
[1733973988958,1.1807,3913.5,3912.3,0.7668]
[1733973989088,1.1807,3913.5,3912.4,0.76678]
[1733973989295,1.1807,3913.5,3912.0,4.022239]
[1733973989498,1.1807,3913.5,3912.1,0.88093957]
[1733973989733,1.1807,3913.5,3912.3,0.7668]
[1733973990050,1.1807,3913.5,3912.0,4.022239]
[1733973990051,2.55566,3912.9,3912.0,1.022239]
[1733973990195,1.1807,3912.5,3911.1,0.76703]
[1733973990398,1.1807,3912.5,3911.5,1.022424]
[1733973990399,0.373656,3912.4,3911.5,1.022424]
[1733973990844,1.1807,3912.5,3911.5,1.022424]
[1733973991497,0.03195207,3913.2,3909.8,0.1019]
[1733973991498,2.5566,3911.5,3909.8,0.1019]
[1733973991694,2.55666,3911.4,3910.6,1.022424]
[1733973991908,0.03196092,3911.9,3910.6,1.022424]
[1733973992118,2.55684,3911.1,3910.6,1.022424]
[1733973992320,0.255684,3911.0,3910.6,1.022424]
[1733973992548,0.255684,3911.0,3909.8,0.1019]
[1733973992768,1.1807,3911.7,3910.0,0.1274535]
[1733973993059,2.55651,3911.6,3910.2,0.76721]
[1733973993214,2.55651,3911.6,3910.0,0.1274535]
[1733973993215,1.1807,3911.7,3910.0,0.1274535]
[1733973993414,3.73716,3911.7,3910.1,0.76724]
[1733973993743,3.73716,3911.7,3909.9,1.022789]
[1733973993744,2.55686,3911.1,3909.9,1.022789]
[1733973993963,1.1807,3910.7,3909.9,1.022789]
[1733973994152,2.55717,3910.6,3909.4,0.1019]
[1733973994327,2.55717,3910.6,3909.8,1.022906]
[1733973994664,1.1807,3910.7,3910.0,0.76725]
[1733973994818,1.1807,3911.4,3910.0,0.76725]
[1733973995157,1.1807,3911.4,3909.5,1.022806]
[1733973995313,1.21266519,3911.4,3909.5,1.022806]
[1733973995525,3.73734,3911.4,3909.8,0.76729]
[1733973995864,2.55678,3911.2,3909.8,0.1790096]
[1733973996156,2.55676,3911.2,3909.5,1.022806]
[1733973996651,2.55709,3910.7,3909.5,1.022806]
[1733973996857,1.1807,3910.5,3909.5,1.022806]
[1733973997055,1.1807,3910.5,3908.1,2.0]
[1733973997056,0.03197351,3910.4,3908.9,3.91838672]
[1733973997227,2.55702,3910.8,3909.4,2.91838672]
[1733973997645,1.1807,3911.0,3909.4,0.76737]
[1733973997831,1.1807,3911.0,3909.5,0.1790176]
[1733973998026,3.7376,3911.0,3909.5,0.1790176]
[1733973998237,2.55696,3910.9,3909.3,1.022806]
[1733973998548,2.55703,3910.8,3909.3,0.022806]
[1733973998720,1.1807,3912.5,3910.2,3.1019]
[1733973999063,1.1807,3912.5,3911.3,0.76699]
[1733973999555,2.55505,3913.9,3910.8,0.7671]
[1733973999556,1.1807,3913.7,3911.4,1.12411582]
[1733973999763,2.55542,3913.3,3911.4,1.022349]
[1733973999971,0.40583741,3913.6,3911.5,0.55]
[1733974000149,3.73584,3913.7,3912.2,0.76682]
[1733974000357,3.73584,3913.7,3912.2,0.76681]
[1733974000652,1.1807,3913.7,3911.4,1.42486201]
[1733974000874,1.1807,3913.7,3911.5,0.55]
[1733974001172,1.1807,3913.7,3911.6,3.71262687]
[1733974001330,1.1807,3913.7,3912.3,0.76679]
[1733974001671,2.5552,3913.6,3911.5,0.55]
[1733974001828,1.1807,3913.7,3912.6,0.76674]
[1733974002267,1.1807,3913.7,3911.5,0.55]
[1733974002565,0.14206554,3913.6,3912.6,0.76674]
[1733974002864,0.14206554,3913.6,3912.0,3.0]
[1733974003037,0.14206554,3913.6,3912.3,0.76679]
[1733974003238,0.14206554,3913.6,3912.0,3.0]
[1733974003562,0.14206554,3913.6,3912.0,3.53537567]
[1733974003736,0.14206554,3913.6,3912.6,0.76674]
[1733974004078,0.14206554,3913.6,3912.0,0.76685]
[1733974004243,0.14206554,3913.6,3912.1,0.76684]
[1733974004431,2.55525,3913.5,3912.1,0.76684]
[1733974004627,0.14206554,3913.6,3911.7,0.12914755]
[1733974004628,0.41974668,3913.4,3911.7,0.12914755]
[1733974004840,0.14206554,3913.6,3911.8,0.7669]
[1733974004841,2.55546,3913.2,3911.8,0.7669]
[1733974005027,0.14206554,3913.6,3911.7,0.12914755]
[1733974005443,0.14206554,3913.6,3912.4,0.76678]
[1733974005674,0.14206554,3913.6,3911.7,0.12914755]
[1733974005879,0.14206554,3913.6,3911.7,0.89606755]
[1733974006191,0.14206554,3913.6,3911.7,0.12914755]
[1733974006192,1.1807,3912.8,3911.7,0.12914755]
[1733974006332,1.1807,3912.8,3911.2,0.76701]
[1733974006532,0.0319502,3912.7,3911.3,4.0]
[1733974006737,2.55597,3912.5,3911.3,4.0]
[1733974007038,2.55598,3912.4,3911.3,4.0]
[1733974007344,0.255598,3912.3,3911.3,4.0]